[Event "*** SCC Grand Prix: Titled Tuesday Blitz"]
[Site "Chess.com"]
[Date "2020.08.25"]
[Round "6"]
[White "j2806"]
[Black "winniethepooh04"]
[Result "0-1"]
[WhiteElo "2026"]
[BlackElo "2167"]
[TimeControl "180+1"]
[EndTime "11:07:09 PDT"]
[Termination "winniethepooh04 won by resignation"]

1. e4 {[%clk 0:03:00.9]} 1... c5 {[%clk 0:02:57.6]} 2. Nf3 {[%clk 0:02:58.5]}
2... d6 {[%clk 0:02:58]} 3. d4 {[%clk 0:02:58.7]} 3... cxd4 {[%clk 0:02:58.5]}
4. Nxd4 {[%clk 0:02:59.3]} 4... Nf6 {[%clk 0:02:59.1]} 5. Nc3 {[%clk 0:02:59.9]}
5... a6 {[%clk 0:02:59.6]} 6. Be3 {[%clk 0:02:58.4]} 6... e6 {[%clk 0:03:00]} 7.
f3 {[%clk 0:02:58.6]} 7... Be7 {[%clk 0:03:00.4]} 8. Qd2 {[%clk 0:02:59.1]} 8...
O-O {[%clk 0:03:00]} 9. O-O-O {[%clk 0:02:58.7]} 9... Qc7 {[%clk 0:03:00.5]} 10.
g4 {[%clk 0:02:59.2]} 10... b5 {[%clk 0:03:00.9]} 11. h4 {[%clk 0:02:59.3]}
11... b4 {[%clk 0:03:01]} 12. Nce2 {[%clk 0:02:58.8]} 12... d5 {[%clk
0:03:01.3]} 13. g5 {[%clk 0:02:54.1]} 13... Nfd7 {[%clk 0:02:57.4]} 14. exd5
{[%clk 0:02:53.8]} 14... exd5 {[%clk 0:02:57.9]} 15. Nf5 {[%clk 0:02:40.2]}
15... Bc5 {[%clk 0:02:57.2]} 16. Qxd5 {[%clk 0:02:13.3]} 16... Bxe3+ {[%clk
0:02:53.7]} 17. Nxe3 {[%clk 0:02:11]} 17... Bb7 {[%clk 0:02:54.1]} 18. Qf5
{[%clk 0:02:07.8]} 18... Ne5 {[%clk 0:02:46.3]} 19. Bg2 {[%clk 0:02:01.1]} 19...
Nc4 {[%clk 0:02:41.8]} 20. Qd3 {[%clk 0:01:50.1]} 20... Nxe3 {[%clk 0:02:36.1]}
21. Qxe3 {[%clk 0:01:49.7]} 21... Nd7 {[%clk 0:02:32.3]} 22. Kb1 {[%clk
0:01:49.1]} 22... Nb6 {[%clk 0:02:30.7]} 23. Nd4 {[%clk 0:01:47.2]} 23... Rac8
{[%clk 0:02:29.5]} 24. Qb3 {[%clk 0:01:43.6]} 24... a5 {[%clk 0:02:27.9]} 25.
Nb5 {[%clk 0:01:36]} 25... Qf4 {[%clk 0:02:06.9]} 26. Rd4 {[%clk 0:01:01]} 26...
Qg3 {[%clk 0:02:01.9]} 27. Rg4 {[%clk 0:00:56.5]} 27... Qf2 {[%clk 0:01:54.9]}
28. Rf1 {[%clk 0:00:52.9]} 28... Qe2 {[%clk 0:01:54.7]} 29. Nd6 {[%clk
0:00:43.4]} 29... Bxf3 {[%clk 0:01:44.5]} 30. Nxc8 {[%clk 0:00:19.5]} 30... Rxc8
{[%clk 0:01:38.7]} 31. Rc1 {[%clk 0:00:18.1]} 31... Bxg4 {[%clk 0:01:36.2]} 32.
Bb7 {[%clk 0:00:16.3]} 32... Be6 {[%clk 0:01:33.6]} 33. Qg3 {[%clk 0:00:13.6]}
33... Rf8 {[%clk 0:01:26.1]} 34. Qc7 {[%clk 0:00:12.4]} 34... Nc4 {[%clk
0:01:23.7]} 35. Ba6 {[%clk 0:00:11.5]} 35... Nd2+ {[%clk 0:01:22.8]} 36. Ka1
{[%clk 0:00:11.2]} 36... Qxa6 {[%clk 0:01:23.2]} 0-1

[Event "*** SCC Grand Prix: Titled Tuesday Blitz"]
[Site "Chess.com"]
[Date "2020.08.25"]
[Round "6"]
[White "Firouzja2003"]
[Black "Barmen_EV"]
[Result "1-0"]
[WhiteElo "2977"]
[BlackElo "2465"]
[TimeControl "180+1"]
[EndTime "11:07:11 PDT"]
[Termination "Firouzja2003 won on time"]

1. e4 {[%clk 0:03:00.9]} 1... c5 {[%clk 0:02:55.7]} 2. Nf3 {[%clk 0:03:01.1]}
2... Nc6 {[%clk 0:02:56.1]} 3. Bb5 {[%clk 0:03:00.5]} 3... e6 {[%clk 0:02:56.3]}
4. Bxc6 {[%clk 0:03:00.2]} 4... bxc6 {[%clk 0:02:57.2]} 5. d3 {[%clk 0:03:00.6]}
5... Ne7 {[%clk 0:02:57.9]} 6. Qe2 {[%clk 0:03:00.1]} 6... Ng6 {[%clk
0:02:57.7]} 7. h4 {[%clk 0:02:57.3]} 7... h5 {[%clk 0:02:58]} 8. e5 {[%clk
0:02:56.9]} 8... Be7 {[%clk 0:02:50.2]} 9. Nc3 {[%clk 0:02:52.2]} 9... f6 {[%clk
0:02:46.2]} 10. Bd2 {[%clk 0:02:33]} 10... O-O {[%clk 0:02:37.1]} 11. exf6
{[%clk 0:02:28.4]} 11... gxf6 {[%clk 0:02:30]} 12. Ng1 {[%clk 0:02:24.5]} 12...
Kg7 {[%clk 0:02:19.3]} 13. Qxh5 {[%clk 0:02:23.8]} 13... Rh8 {[%clk 0:02:19.4]}
14. Qe2 {[%clk 0:02:21.1]} 14... Nxh4 {[%clk 0:02:05.6]} 15. O-O-O {[%clk
0:02:18.9]} 15... d5 {[%clk 0:01:59.3]} 16. Nf3 {[%clk 0:02:11.6]} 16... Ng6
{[%clk 0:01:48.8]} 17. g4 {[%clk 0:02:11.3]} 17... e5 {[%clk 0:01:44.7]} 18. g5
{[%clk 0:02:09.8]} 18... Bg4 {[%clk 0:01:23.6]} 19. gxf6+ {[%clk 0:02:00.9]}
19... Bxf6 {[%clk 0:01:24.5]} 20. Rhg1 {[%clk 0:01:54.2]} 20... Qd7 {[%clk
0:01:19.9]} 21. Nxe5 {[%clk 0:01:37.3]} 21... Nxe5 {[%clk 0:00:53.3]} 22. f3
{[%clk 0:01:37.5]} 22... Rae8 {[%clk 0:00:24]} 23. Qg2 {[%clk 0:01:27.7]} 23...
Rh4 {[%clk 0:00:14.2]} 24. fxg4 {[%clk 0:01:24.8]} 24... Rxg4 {[%clk 0:00:12.3]}
25. Qf2 {[%clk 0:01:24.9]} 25... Rg8 {[%clk 0:00:05]} 26. Qxc5 {[%clk
0:01:20.5]} 26... Kf7 {[%clk 0:00:03.3]} 27. Rgf1 {[%clk 0:01:20.3]} 27... R8g6
{[%clk 0:00:02.4]} 28. Rde1 {[%clk 0:01:18.9]} 28... Kg7 {[%clk 0:00:02.1]} 29.
Rxe5 {[%clk 0:01:17.7]} 29... Bxe5 {[%clk 0:00:01.5]} 30. Qf8+ {[%clk
0:01:17.7]} 1-0

[Event "*** SCC Grand Prix: Titled Tuesday Blitz"]
[Site "Chess.com"]
[Date "2020.08.25"]
[Round "6"]
[White "stolencandy13"]
[Black "GMHess"]
[Result "0-1"]
[WhiteElo "2506"]
[BlackElo "2785"]
[TimeControl "180+1"]
[EndTime "11:07:12 PDT"]
[Termination "GMHess won by resignation"]

1. d4 {[%clk 0:03:00.9]} 1... b6 {[%clk 0:03:00.1]} 2. e3 {[%clk 0:02:59.9]}
2... Bb7 {[%clk 0:03:00.7]} 3. Nf3 {[%clk 0:03:00.5]} 3... f5 {[%clk 0:03:01]}
4. Bd3 {[%clk 0:03:00.4]} 4... Nf6 {[%clk 0:03:01.6]} 5. b3 {[%clk 0:03:00]}
5... g6 {[%clk 0:03:01.3]} 6. Bb2 {[%clk 0:03:00.3]} 6... Bg7 {[%clk 0:03:01.7]}
7. Nbd2 {[%clk 0:03:00.7]} 7... O-O {[%clk 0:03:02.4]} 8. O-O {[%clk 0:03:01.2]}
8... d6 {[%clk 0:03:02.9]} 9. Ng5 {[%clk 0:02:56.3]} 9... Qd7 {[%clk 0:03:02.9]}
10. Bc4+ {[%clk 0:02:53.9]} 10... d5 {[%clk 0:03:03]} 11. Bd3 {[%clk 0:02:53.5]}
11... Ne4 {[%clk 0:03:03.5]} 12. Ngf3 {[%clk 0:02:32.6]} 12... Nc6 {[%clk
0:02:52.6]} 13. a3 {[%clk 0:02:31.6]} 13... e6 {[%clk 0:02:42.9]} 14. c4 {[%clk
0:02:25.4]} 14... Ne7 {[%clk 0:02:40]} 15. Qe2 {[%clk 0:02:19.2]} 15... Qe8
{[%clk 0:02:21.1]} 16. Ne5 {[%clk 0:02:12.4]} 16... g5 {[%clk 0:02:14.8]} 17. f4
{[%clk 0:02:04.7]} 17... Bxe5 {[%clk 0:02:00.6]} 18. dxe5 {[%clk 0:01:45.8]}
18... Nxd2 {[%clk 0:01:56]} 19. Qxd2 {[%clk 0:01:44]} 19... Rd8 {[%clk
0:01:56.2]} 20. Qf2 {[%clk 0:01:36.5]} 20... Qg6 {[%clk 0:01:56.2]} 21. Rad1
{[%clk 0:01:31.7]} 21... c5 {[%clk 0:01:55.1]} 22. Qg3 {[%clk 0:01:28.1]} 22...
dxc4 {[%clk 0:01:47.7]} 23. Bxc4 {[%clk 0:01:25.8]} 23... Bd5 {[%clk 0:01:48.2]}
24. fxg5 {[%clk 0:01:12.1]} 24... Rd7 {[%clk 0:01:33]} 25. h4 {[%clk 0:01:06.9]}
25... Rfd8 {[%clk 0:01:31.4]} 26. Bb5 {[%clk 0:01:03]} 26... Bc6 {[%clk
0:01:30.4]} 27. Rxd7 {[%clk 0:01:02.3]} 27... Rxd7 {[%clk 0:01:30.5]} 28. Bc4
{[%clk 0:00:51.6]} 28... b5 {[%clk 0:01:25.2]} 29. h5 {[%clk 0:00:39.8]} 29...
Qf7 {[%clk 0:01:17.7]} 30. g6 {[%clk 0:00:32.5]} 30... hxg6 {[%clk 0:01:18.6]}
31. hxg6 {[%clk 0:00:33]} 31... Nxg6 {[%clk 0:01:17]} 32. Be2 {[%clk 0:00:28.8]}
32... Rd2 {[%clk 0:01:16.3]} 33. Bh5 {[%clk 0:00:28.3]} 33... Rxg2+ {[%clk
0:01:15.9]} 34. Qxg2 {[%clk 0:00:24.4]} 34... Bxg2 {[%clk 0:01:16.8]} 35. Kxg2
{[%clk 0:00:24.2]} 35... Nh4+ {[%clk 0:01:16.7]} 36. Kh3 {[%clk 0:00:15.1]}
36... Qxh5 {[%clk 0:01:17.6]} 37. Rf4 {[%clk 0:00:08.5]} 37... Ng6+ {[%clk
0:01:16]} 0-1

[Event "*** SCC Grand Prix: Titled Tuesday Blitz"]
[Site "Chess.com"]
[Date "2020.08.25"]
[Round "6"]
[White "VinzentSpitzl"]
[Black "pastouche06"]
[Result "1/2-1/2"]
[WhiteElo "2380"]
[BlackElo "2506"]
[TimeControl "180+1"]
[EndTime "11:07:12 PDT"]
[Termination "Game drawn by agreement"]

1. e4 {[%clk 0:03:00.9]} 1... c6 {[%clk 0:02:59.9]} 2. Nf3 {[%clk 0:03:00.7]}
2... d5 {[%clk 0:03:00.2]} 3. Nc3 {[%clk 0:03:01.2]} 3... Bg4 {[%clk 0:02:59.4]}
4. h3 {[%clk 0:02:59.3]} 4... Bxf3 {[%clk 0:02:59.3]} 5. Qxf3 {[%clk 0:03:00.2]}
5... e6 {[%clk 0:02:59.6]} 6. g3 {[%clk 0:02:56.5]} 6... Nd7 {[%clk 0:02:55.8]}
7. Bg2 {[%clk 0:02:55.9]} 7... Bc5 {[%clk 0:02:52.4]} 8. O-O {[%clk 0:02:53.1]}
8... Ngf6 {[%clk 0:02:51.8]} 9. Rd1 {[%clk 0:02:51.3]} 9... Bd4 {[%clk
0:02:49.9]} 10. exd5 {[%clk 0:02:43]} 10... cxd5 {[%clk 0:02:50.8]} 11. Ne2
{[%clk 0:02:40.2]} 11... Bb6 {[%clk 0:02:49.3]} 12. d4 {[%clk 0:02:36.6]} 12...
O-O {[%clk 0:02:45.8]} 13. Bg5 {[%clk 0:02:35.8]} 13... h6 {[%clk 0:02:45.3]}
14. Bf4 {[%clk 0:02:31.3]} 14... Bc7 {[%clk 0:02:41.7]} 15. c3 {[%clk
0:02:29.8]} 15... Bxf4 {[%clk 0:02:39.7]} 16. Nxf4 {[%clk 0:02:28.8]} 16... Ne4
{[%clk 0:02:36.8]} 17. Nd3 {[%clk 0:02:26.9]} 17... Qc7 {[%clk 0:02:30.9]} 18.
Qe3 {[%clk 0:02:16.8]} 18... Nd6 {[%clk 0:02:30]} 19. Rac1 {[%clk 0:02:09.6]}
19... a5 {[%clk 0:02:20]} 20. Qe2 {[%clk 0:02:02.6]} 20... b5 {[%clk 0:01:59.6]}
21. Ne5 {[%clk 0:02:02.1]} 21... Nxe5 {[%clk 0:01:56.9]} 22. dxe5 {[%clk
0:01:57.3]} 22... Nc4 {[%clk 0:01:55.7]} 23. b3 {[%clk 0:01:57.7]} 23... Nb6
{[%clk 0:01:55.6]} 24. Qxb5 {[%clk 0:01:55.8]} 24... a4 {[%clk 0:01:52.3]} 25.
c4 {[%clk 0:01:51.1]} 25... axb3 {[%clk 0:01:13.2]} 26. axb3 {[%clk 0:01:47.2]}
26... Rac8 {[%clk 0:01:08.6]} 27. cxd5 {[%clk 0:01:15.1]} 27... Qxc1 {[%clk
0:01:07.3]} 28. Rxc1 {[%clk 0:01:15.5]} 28... Rxc1+ {[%clk 0:01:07.8]} 29. Kh2
{[%clk 0:01:16.4]} 29... Nxd5 {[%clk 0:01:08.3]} 30. Bxd5 {[%clk 0:01:16.6]}
30... exd5 {[%clk 0:01:08.1]} 31. Qxd5 {[%clk 0:01:17.2]} 31... Rb8 {[%clk
0:00:54.5]} 32. e6 {[%clk 0:01:16]} 32... fxe6 {[%clk 0:00:48.4]} 33. Qxe6+
{[%clk 0:01:16.3]} 33... Kh8 {[%clk 0:00:49]} 34. h4 {[%clk 0:01:04.1]} 34...
Rb1 {[%clk 0:00:47.6]} 35. h5 {[%clk 0:01:02.5]} 35... R1xb3 {[%clk 0:00:46.7]}
36. Kh3 {[%clk 0:00:58.9]} 36... R3b6 {[%clk 0:00:46.2]} 37. Qe5 {[%clk
0:00:55]} 37... Rf8 {[%clk 0:00:45.7]} 38. f4 {[%clk 0:00:54.3]} 38... Rbf6
{[%clk 0:00:44.9]} 1/2-1/2

[Event "*** SCC Grand Prix: Titled Tuesday Blitz"]
[Site "Chess.com"]
[Date "2020.08.25"]
[Round "6"]
[White "ChessWarrior7197"]
[Black "penguingm1"]
[Result "1-0"]
[WhiteElo "2932"]
[BlackElo "2988"]
[TimeControl "180+1"]
[EndTime "11:07:14 PDT"]
[Termination "ChessWarrior7197 won on time"]

1. e4 {[%clk 0:03:00.9]} 1... e5 {[%clk 0:02:57.3]} 2. Nf3 {[%clk 0:03:00.6]}
2... Nc6 {[%clk 0:02:56.8]} 3. Bc4 {[%clk 0:03:01.2]} 3... Bc5 {[%clk
0:02:55.5]} 4. O-O {[%clk 0:02:59.4]} 4... Nf6 {[%clk 0:02:48.6]} 5. d4 {[%clk
0:02:59.1]} 5... Bxd4 {[%clk 0:02:48.8]} 6. Nxd4 {[%clk 0:02:59.1]} 6... Nxd4
{[%clk 0:02:49.7]} 7. Bg5 {[%clk 0:02:59.3]} 7... d6 {[%clk 0:02:49.8]} 8. f4
{[%clk 0:02:59.3]} 8... Qe7 {[%clk 0:02:50.2]} 9. Na3 {[%clk 0:02:59.2]} 9...
Rg8 {[%clk 0:02:15]} 10. Kh1 {[%clk 0:02:54.7]} 10... Be6 {[%clk 0:02:01.2]} 11.
fxe5 {[%clk 0:02:53.1]} 11... dxe5 {[%clk 0:01:59.9]} 12. Bxf6 {[%clk
0:02:52.9]} 12... gxf6 {[%clk 0:02:00.1]} 13. c3 {[%clk 0:02:53.1]} 13... Bg4
{[%clk 0:01:10.2]} 14. Qe1 {[%clk 0:02:41.3]} 14... Ne6 {[%clk 0:01:08]} 15. Nc2
{[%clk 0:02:39.3]} 15... Nf4 {[%clk 0:01:01.2]} 16. Ne3 {[%clk 0:02:39.3]} 16...
O-O-O {[%clk 0:00:27.6]} 17. Qf2 {[%clk 0:02:23.7]} 17... Rg6 {[%clk 0:00:22.9]}
18. Nxg4 {[%clk 0:02:00.9]} 18... Rxg4 {[%clk 0:00:22.2]} 19. Qxa7 {[%clk
0:02:01.5]} 19... Rd2 {[%clk 0:00:14.9]} 20. g3 {[%clk 0:01:40.6]} 20... Qd6
{[%clk 0:00:10.8]} 21. Qa8+ {[%clk 0:01:26]} 21... Kd7 {[%clk 0:00:11]} 22. Bxf7
{[%clk 0:01:26.3]} 22... Qe7 {[%clk 0:00:06.9]} 23. Rad1 {[%clk 0:01:24.2]}
23... Rd6 {[%clk 0:00:03.8]} 24. Rxd6+ {[%clk 0:01:19.9]} 24... Kxd6 {[%clk
0:00:03.7]} 25. Rd1+ {[%clk 0:01:19.4]} 25... Kc6 {[%clk 0:00:04.2]} 26. Be8+
{[%clk 0:01:06.5]} 26... Kb6 {[%clk 0:00:04]} 27. b4 {[%clk 0:01:05.9]} 1-0

[Event "*** SCC Grand Prix: Titled Tuesday Blitz"]
[Site "Chess.com"]
[Date "2020.08.25"]
[Round "6"]
[White "krasavetc"]
[Black "mr65"]
[Result "0-1"]
[WhiteElo "2289"]
[BlackElo "2177"]
[TimeControl "180+1"]
[EndTime "11:07:14 PDT"]
[Termination "mr65 won on time"]

1. Nf3 {[%clk 0:02:46.4]} 1... Nf6 {[%clk 0:02:59]} 2. c4 {[%clk 0:02:43.8]}
2... g6 {[%clk 0:02:58.4]} 3. d4 {[%clk 0:02:43.2]} 3... Bg7 {[%clk 0:02:58.1]}
4. Nc3 {[%clk 0:02:44]} 4... O-O {[%clk 0:02:57.5]} 5. e4 {[%clk 0:02:43]} 5...
d6 {[%clk 0:02:57.1]} 6. Be2 {[%clk 0:02:42.4]} 6... Na6 {[%clk 0:02:56.7]} 7.
O-O {[%clk 0:02:41.2]} 7... e5 {[%clk 0:02:56.4]} 8. dxe5 {[%clk 0:02:40]} 8...
dxe5 {[%clk 0:02:53.6]} 9. Bg5 {[%clk 0:02:31.3]} 9... h6 {[%clk 0:02:49.9]} 10.
Bh4 {[%clk 0:02:23.6]} 10... g5 {[%clk 0:02:44.2]} 11. Bg3 {[%clk 0:02:22.5]}
11... Qxd1 {[%clk 0:02:39.3]} 12. Rfxd1 {[%clk 0:02:10.6]} 12... Nc5 {[%clk
0:02:38.7]} 13. Bd3 {[%clk 0:01:36.5]} 13... Bg4 {[%clk 0:02:13.5]} 14. Bxe5
{[%clk 0:01:25.6]} 14... Rfe8 {[%clk 0:02:03.2]} 15. Bxc7 {[%clk 0:01:21.3]}
15... Nfxe4 {[%clk 0:02:01.5]} 16. Nd5 {[%clk 0:00:42.3]} 16... Nxd3 {[%clk
0:01:14.6]} 17. Rxd3 {[%clk 0:00:39.9]} 17... Bxb2 {[%clk 0:00:58.6]} 18. Rb1
{[%clk 0:00:32.4]} 18... Bg7 {[%clk 0:00:43.6]} 0-1

[Event "*** SCC Grand Prix: Titled Tuesday Blitz"]
[Site "Chess.com"]
[Date "2020.08.25"]
[Round "6"]
[White "Tssunami"]
[Black "tdf98pantani"]
[Result "0-1"]
[WhiteElo "2349"]
[BlackElo "2647"]
[TimeControl "180+1"]
[EndTime "11:07:18 PDT"]
[Termination "tdf98pantani won by resignation"]

1. c4 {[%clk 0:02:52.9]} 1... f5 {[%clk 0:02:58.3]} 2. Nc3 {[%clk 0:02:51.8]}
2... Nf6 {[%clk 0:02:57.5]} 3. d4 {[%clk 0:02:52.4]} 3... g6 {[%clk 0:02:56.2]}
4. h4 {[%clk 0:02:52.4]} 4... d6 {[%clk 0:02:48.7]} 5. h5 {[%clk 0:02:50.7]}
5... Bg7 {[%clk 0:02:47.5]} 6. h6 {[%clk 0:02:39.4]} 6... Bf8 {[%clk 0:02:47]}
7. d5 {[%clk 0:02:39.3]} 7... e5 {[%clk 0:02:45]} 8. Bg5 {[%clk 0:02:27.7]} 8...
Be7 {[%clk 0:02:44.7]} 9. Nf3 {[%clk 0:02:18.1]} 9... Na6 {[%clk 0:02:39.6]} 10.
Qc2 {[%clk 0:02:03.8]} 10... Nc5 {[%clk 0:02:37]} 11. b4 {[%clk 0:02:03.1]}
11... Nce4 {[%clk 0:02:35.4]} 12. Nxe4 {[%clk 0:02:01.6]} 12... Nxe4 {[%clk
0:02:35.3]} 13. Bxe7 {[%clk 0:01:49]} 13... Qxe7 {[%clk 0:02:35]} 14. e3 {[%clk
0:01:41.5]} 14... a5 {[%clk 0:02:34.4]} 15. b5 {[%clk 0:01:41.2]} 15... O-O
{[%clk 0:02:30.6]} 16. Bd3 {[%clk 0:01:40.8]} 16... Nc5 {[%clk 0:02:30.1]} 17.
Be2 {[%clk 0:01:39.6]} 17... f4 {[%clk 0:02:25.1]} 18. e4 {[%clk 0:01:33.6]}
18... g5 {[%clk 0:02:21.5]} 19. Nd2 {[%clk 0:01:30.4]} 19... a4 {[%clk
0:02:14.9]} 20. f3 {[%clk 0:01:24.4]} 20... Kh8 {[%clk 0:02:11.8]} 21. O-O-O
{[%clk 0:01:16.6]} 21... Rg8 {[%clk 0:02:03.6]} 22. g4 {[%clk 0:01:01.5]} 22...
fxg3 {[%clk 0:02:02.7]} 23. Rdg1 {[%clk 0:01:00.2]} 23... Bd7 {[%clk 0:01:54.6]}
24. Rxg3 {[%clk 0:00:59.9]} 24... Rg6 {[%clk 0:01:54.7]} 25. Nf1 {[%clk
0:00:57.4]} 25... Qf6 {[%clk 0:01:52.9]} 26. Qd2 {[%clk 0:00:53.4]} 26... Rag8
{[%clk 0:01:51.7]} 27. Rhg1 {[%clk 0:00:40.7]} 27... Qf4 {[%clk 0:01:43.8]} 28.
Qxf4 {[%clk 0:00:31.8]} 28... gxf4 {[%clk 0:01:44.1]} 29. Rxg6 {[%clk
0:00:24.8]} 29... Rxg6 {[%clk 0:01:44.4]} 30. Rh1 {[%clk 0:00:23.5]} 30... Rg2
{[%clk 0:01:42]} 31. Kd2 {[%clk 0:00:21.5]} 31... Nxe4+ {[%clk 0:01:33.7]} 32.
fxe4 {[%clk 0:00:21]} 32... f3 {[%clk 0:01:34.1]} 33. Ke3 {[%clk 0:00:20]} 33...
fxe2 {[%clk 0:01:28.6]} 34. Nd2 {[%clk 0:00:19.9]} 34... Bg4 {[%clk 0:01:26.6]}
35. Nf3 {[%clk 0:00:18.3]} 35... Rg3 {[%clk 0:01:25.3]} 36. Kxe2 {[%clk
0:00:17.6]} 36... Rxf3 {[%clk 0:01:25.4]} 37. Rg1 {[%clk 0:00:17.1]} 37... Rg3+
{[%clk 0:01:25.4]} 38. Kf2 {[%clk 0:00:17.5]} 38... Rxg1 {[%clk 0:01:25.7]} 39.
Kxg1 {[%clk 0:00:18.4]} 39... Be2 {[%clk 0:01:21.2]} 40. c5 {[%clk 0:00:18.1]}
40... Bxb5 {[%clk 0:01:20.4]} 0-1

[Event "*** SCC Grand Prix: Titled Tuesday Blitz"]
[Site "Chess.com"]
[Date "2020.08.25"]
[Round "6"]
[White "Yana_pro"]
[Black "Srisshhhtea"]
[Result "1-0"]
[WhiteElo "2101"]
[BlackElo "2271"]
[TimeControl "180+1"]
[EndTime "11:07:21 PDT"]
[Termination "Yana_pro won by resignation"]

1. Nf3 {[%clk 0:03:00.9]} 1... Nf6 {[%clk 0:02:59.2]} 2. g3 {[%clk 0:03:01.8]}
2... g6 {[%clk 0:02:59.7]} 3. Bg2 {[%clk 0:03:02]} 3... Bg7 {[%clk 0:03:00.4]}
4. O-O {[%clk 0:03:02.9]} 4... O-O {[%clk 0:03:01.3]} 5. b3 {[%clk 0:02:57.6]}
5... d6 {[%clk 0:03:00.7]} 6. Bb2 {[%clk 0:02:57.8]} 6... e5 {[%clk 0:02:59.4]}
7. d3 {[%clk 0:02:57.5]} 7... Nc6 {[%clk 0:02:57.1]} 8. c4 {[%clk 0:02:57.4]}
8... Bd7 {[%clk 0:02:47.2]} 9. Nbd2 {[%clk 0:02:57.6]} 9... h6 {[%clk
0:02:45.3]} 10. a3 {[%clk 0:02:58]} 10... Nh7 {[%clk 0:02:38.7]} 11. b4 {[%clk
0:02:56.2]} 11... f5 {[%clk 0:02:37.4]} 12. b5 {[%clk 0:02:56.7]} 12... Ne7
{[%clk 0:02:36.6]} 13. Nb3 {[%clk 0:02:53.1]} 13... c6 {[%clk 0:02:19.4]} 14. a4
{[%clk 0:02:53]} 14... g5 {[%clk 0:02:16.5]} 15. c5 {[%clk 0:02:44.7]} 15... Be6
{[%clk 0:02:07.3]} 16. d4 {[%clk 0:02:29.4]} 16... e4 {[%clk 0:01:47.7]} 17.
cxd6 {[%clk 0:02:29.1]} 17... Qxd6 {[%clk 0:01:43.7]} 18. Ne5 {[%clk 0:02:28.7]}
18... Nd5 {[%clk 0:01:28.8]} 19. Ba3 {[%clk 0:02:25.7]} 19... Qc7 {[%clk
0:01:11.7]} 20. Bxf8 {[%clk 0:02:23.6]} 20... Nxf8 {[%clk 0:01:12.6]} 21. bxc6
{[%clk 0:02:24.1]} 21... bxc6 {[%clk 0:01:07.1]} 22. Rc1 {[%clk 0:02:24]} 22...
Bxe5 {[%clk 0:01:02.1]} 23. dxe5 {[%clk 0:02:21.5]} 23... Qxe5 {[%clk
0:00:53.1]} 24. Qd4 {[%clk 0:02:18.3]} 24... Qc7 {[%clk 0:00:44.8]} 25. Qc5
{[%clk 0:02:04.4]} 25... Rc8 {[%clk 0:00:39]} 26. Nd4 {[%clk 0:01:41.3]} 26...
Bd7 {[%clk 0:00:37.9]} 27. Rfd1 {[%clk 0:01:33.2]} 27... Ne6 {[%clk 0:00:34]}
28. Nxe6 {[%clk 0:01:32.5]} 28... Bxe6 {[%clk 0:00:34.9]} 29. e3 {[%clk
0:01:29.2]} 29... Qf7 {[%clk 0:00:17.8]} 30. Bf1 {[%clk 0:01:28.7]} 30... Nb6
{[%clk 0:00:17.4]} 31. a5 {[%clk 0:01:28.1]} 31... Nd7 {[%clk 0:00:13.8]} 32.
Qxa7 {[%clk 0:01:26.8]} 32... Bd5 {[%clk 0:00:13]} 33. Bc4 {[%clk 0:01:21.8]}
33... Bxc4 {[%clk 0:00:11.1]} 34. Rxd7 {[%clk 0:01:22.7]} 1-0